Cogmind - Beta 12 @@@ ROGUE MODE // 2023.03.12 @ 22:39:59 Player: Ms Vella Result: Destroyed by X-62 Marksman with Pulse Rifle Performance ------------- Evolutions (2) 1000 Regions Visited (7) 1400 Robots Destroyed (48) 240 Value Destroyed (1145) 1145 Prototype IDs (25) 500 Alien Tech Used (0) 0 Bonus (524) 524 TOTAL SCORE: 4809 Bonus ------- High Alert Combat Kills 94 Follower Combat Kills 149 Entered Garrisons 200 Aligned with FarCom 300 Friendly Fire -219 Cogmind --------- Core Integrity 0/550 Matter 136/300 Energy 440/440 System Corruption 2% Temperature Cool (9) Movement Walking (260) Ox2 Location -8/Materials Parts ------- > --- POWER (1) -------- Improved Deuterium Engine > --- PROPULSION (3) --- Aluminum Leg Aluminum Leg > --- UTILITY (5) ------ Improved Heat Sink Large Storage Unit Medium Battery Improved Power Shielding Improved Utility Shielding > --- WEAPON (2) ------- Flak Cannon Flak Cannon > --- INVENTORY (15) --- Improved Heat Sink Improved Heat Sink Large Storage Unit Large Storage Unit Large Storage Unit High-capacity Matter Pod (200) Improved Terrain Scanner Core Analyzer Hacking Suite Skeleton Box Flak Cannon Gauss Cannon Gauss Cannon Gauss Cannon Signal Generator Peak State ------------ > --- POWER ------------ Light Nuclear Core > --- PROPULSION ------- Aluminum Leg Aluminum Leg Carbon-fiber Leg > --- UTILITY ---------- Large Storage Unit Medium Battery Improved Power Shielding Improved Utility Shielding Improved Utility Shielding > --- WEAPON ----------- Ion Cannon Bore Cannon > --- INVENTORY -------- Improved Deuterium Engine Aluminum Leg Improved Heat Sink Large Storage Unit Large Storage Unit Large Storage Unit Medium Battery High-capacity Matter Pod Improved Terrain Scanner Terrain Scan Processor Skeleton Box Particle Gun Particle Cannon Light Assault Rifle Signal Generator [Rating: 30] Favorites ----------- Power Ion Engine Engine Ion Engine Power Core Light Nuclear Core Propulsion Light Treads Treads Light Treads Leg Aluminum Leg Utility Large Storage Unit Device Improved Heat Sink Storage Large Storage Unit Protection Improved Utility Shielding Weapon Light Assault Rifle Energy Gun Particle Gun Energy Cannon Light EM Pulse Cannon Ballistic Gun Light Assault Rifle Ballistic Cannon Flak Cannon Launcher Rocket Launcher Build | -11 -10 -10 -10 -9 -8 -8 -8 ------- Run | Jun Mat Min Exi Min Mat Gar Mat Slots Evolved 4 | . . . . . 4 . . Power . | . . . . . . . . Propulsion 1 | . . . . . 1 . . Utility 3 | . . . . . 3 . . Weapon . | . . . . . . . . Parts Attached 55 | 3 3 2 . 8 19 17 3 Power 5 | 1 . . . . 1 2 1 Engine 3 | 1 . . . . 1 . 1 Core 2 | . . . . . . 2 . Reactor . | . . . . . . . . Propulsion 15 | 2 1 . . 2 6 4 . Treads 3 | 2 1 . . . . . . Leg 12 | . . . . 2 6 4 . Wheel . | . . . . . . . . Hover . | . . . . . . . . Flight . | . . . . . . . . Utility 11 | . 1 . . 1 6 3 . Device 3 | . . . . 1 1 1 . Storage 3 | . 1 . . . 2 . . Processor . | . . . . . . . . Hackware . | . . . . . . . . Protection 5 | . . . . . 3 2 . Artifact . | . . . . . . . . Weapon 24 | . 1 2 . 5 6 8 2 Energy Gun 1 | . . . . . . 1 . Energy Cannon 6 | . . . . . 3 3 . Ballistic Gun 5 | . 1 1 . 1 1 1 . Ballistic Cannon 5 | . . . . . 1 2 2 Launcher 7 | . . 1 . 4 1 1 . Special Weapon . | . . . . . . . . Impact Weapon . | . . . . . . . . Slashing Weapon . | . . . . . . . . Piercing Weapon . | . . . . . . . . Special Melee Weapon . | . . . . . . . . Unidentified Prototypes . | . . . . . . . . Parts Lost 17 | . . . . 2 4 10 1 Power 2 | . . . . . 1 1 . Propulsion 7 | . . . . 1 1 4 1 Utility . | . . . . . . . . Weapon 8 | . . . . 1 2 5 . Highest Loss Streak 8 | . . . . 2 3 8 1 To Critical Strikes . | . . . . . . . . Average Slot Usage (%) 88 | . 85 85 85 85 89 95 99 Engine 10 | . 14 14 14 14 8 . 4 Core 1 | . . . . . . 7 4 Treads 14 | . 28 28 28 2 . . . Leg 12 | . . . . 25 26 24 26 Device 1 | . . . . . 4 . 9 Storage 16 | . 14 14 14 14 24 18 18 Protection 7 | . . . . . 10 24 18 Energy Cannon 2 | . . . . . 4 8 . Ballistic Gun 16 | . 28 27 28 14 4 . . Ballistic Cannon 2 | . . . . . 3 4 17 Launcher 2 | . . . . 13 2 2 . Naked Turns . | . . . . . . . . Heaviest Build 49 | 13 33 29 27 31 44 48 49 Greatest Support 40 | 40 40 40 40 40 35 35 30 Greatest Overweight (x) 10 | . 1 . . 1 1 10 1 Average Overweight (x) . | . . . . . . 1 1 Largest Inventory Capacity 15 | 8 15 15 15 15 15 15 15 Average Capacity 14 | 8 10 15 15 15 15 15 15 Most Carried 15 | 6 7 10 15 15 15 15 15 Average Carried 11 | 4 5 8 11 14 14 14 14 Final Capacity 15 | 8 15 15 15 15 15 15 15 Final Carried 15 | 4 7 10 15 15 15 15 15 Class Distribution -------------------- 87% | Mutant 12% | Scavenger-Mutant Dominant Class ---------------- Mutant | -10/Materials Mutant | -10/Mines Mutant | -10/Exiles Mutant | -9/Mines Mutant | -8/Materials Mutant | -8/Garrison Scavenger-Mutant | -8/Materials Resources | -11 -10 -10 -10 -9 -8 -8 -8 ----------- Run | Jun Mat Min Exi Min Mat Gar Mat Matter Collected 1234 | 200 . 70 60 262 232 393 17 Remotely . | . . . . . . . . Salvage Created 1480 | . . 55 . 29 644 608 144 Parts 94 | . . 6 . . 32 43 13 Haulers Intercepted 1 | . . . . . 1 . . Recyclers Shooed 2 | . . 1 . . 1 . . Parts Field Recycled . | . . . . . . . . Retrieved Matter . | . . . . . . . . Parts Self-Destructed . | . . . . . . . . Prevented . | . . . . . . . . Kills | -11 -10 -10 -10 -9 -8 -8 -8 ------- Run | Jun Mat Min Exi Min Mat Gar Mat Combat Hostiles Destroyed 50 | . . 3 . 13 9 18 7 Guns 5 | . . . . 1 4 . . Cannons 22 | . . . . . 2 13 7 AOE 23 | . . 3 . 12 3 5 . Classes Destroyed 11 | . . 2 . 1 5 2 1 Worker 2 | . . . . . 2 . . Hauler 1 | . . . . . 1 . . Recycler 6 | . . 1 . . 5 . . Watcher 1 | . . . . . 1 . . Swarmer 19 | . . 3 . . 5 6 5 Grunt 14 | . . . . . 3 11 . Sentry 2 | . . . . . 1 . 1 Specialist 1 | . . . . . . . 1 Programmer 1 | . . . . . . 1 . Assembled 13 | . . . . 13 . . . Guerrilla 1 | . . . . . . 1 . Best Kill Streak 13 | . . 4 . 13 9 5 5 Combat Bots Only 13 | . . 3 . 13 3 5 5 Max Kills in Single Turn 5 | . . 2 . 3 5 2 1 Gunslinging . | . . . . . . . . Exploded 3 | . . 1 . 3 2 2 . Melee . | . . . . . . . . Uniques/NPCs Destroyed . | . . . . . . . . Combat | -11 -10 -10 -10 -9 -8 -8 -8 -------- Run | Jun Mat Min Exi Min Mat Gar Mat Damage Taken 2961 | . . 95 . 409 685 1328 444 Core 651 | . . 9 . 86 175 301 80 Absorbed by Shields 44 | . . . . . 44 . . Redirected to Shielding 151 | . . . . . 33 100 18 Core Remaining (%) 81 | 100 . . . 62 . . . Volleys Fired 162 | . . 5 . 20 62 62 13 Largest 2 | . . 1 . 1 2 2 2 Hottest 117 | . . 30 . 33 95 117 88 Shots Fired 199 | . . 5 . 20 75 74 25 Gun 64 | . . . . 8 50 6 . Cannon 111 | . . . . . 21 65 25 Launcher 24 | . . 5 . 12 4 3 . Special . | . . . . . . . . Kinetic 119 | . . . . 8 58 28 25 Thermal 36 | . . . . . 5 31 . Explosive 24 | . . 5 . 12 4 3 . Electromagnetic 20 | . . . . . 8 12 . Robot Hit Streak 7 | . . . . 2 7 7 7 Robot Miss Streak 10 | . . . . 3 3 3 10 Penetration Max 1 | . . . . . . 1 . Secondary Targets 1 | . . . . . 1 . . Max Gunslinging Chain 1 | . . . . . 1 . . Shots Hit Robots 113 | . . . . 8 42 41 22 Core Hits 125 | . . 8 . 37 27 28 25 Critical Kills 1 | . . . . . . 1 . Critical Parts Destroyed 2 | . . . . . . 2 . Critical Strikes 5 | . . . . . 1 4 . Destroy 3 | . . . . . . 3 . Blast 1 | . . . . . . 1 . Corrupt 1 | . . . . . 1 . . Melee Attacks . | . . . . . . . . Impact . | . . . . . . . . Slashing . | . . . . . . . . Piercing . | . . . . . . . . Sneak Attacks . | . . . . . . . . Combat Hostiles . | . . . . . . . . Follow-up Attacks . | . . . . . . . . Damage Inflicted 4450 | . . 241 . 1094 1422 1378 315 Guns 378 | . . . . 37 315 26 . Cannons 1544 | . . . . . 204 1025 315 Explosions 2528 | . . 241 . 1057 903 327 . Melee . | . . . . . . . . Ramming . | . . . . . . . . Kinetic 1053 | . . . . 37 337 364 315 Thermal 611 | . . . . . 61 550 . Explosive 2449 | . . 241 . 1057 903 248 . Electromagnetic 337 | . . . . . 121 216 . Impact . | . . . . . . . . Slashing . | . . . . . . . . Piercing . | . . . . . . . . Highest Corruption 2 | . . . . . . 2 2 Average Corruption 1 | . . . . . . 1 2 Corruption Purged . | . . . . . . . . Corruption Blocked . | . . . . . . . . Effects 11 | . . . . . . 6 5 Message Errors 4 | . . . . . . 3 1 Matter Fused 1 | . . . . . . . 1 Energy Discharges 4 | . . . . . . 2 2 Parts Rejected 1 | . . . . . . 1 . Weapon Failures 1 | . . . . . . . 1 Overload Shots . | . . . . . . . . Overflow Damage 170 | . . . . 14 125 31 . Projectiles 36 | . . . . . 13 23 . Explosions 134 | . . . . 14 112 8 . Melee . | . . . . . . . . Knockbacks 9 | . . . . . . 2 7 Impact . | . . . . . . . . Kinetic 9 | . . . . . . 2 7 Secondary . | . . . . . . . . Self-Inflicted Damage 152 | . . 28 . 103 21 . . Shots 8 | . . 1 . 5 2 . . Rammed . | . . . . . . . . Targets Rammed . | . . . . . . . . Kicked . | . . . . . . . . Crushed . | . . . . . . . . Highest Temperature 495 | . . . . 16 162 495 9 Average Temperature 151 | . . . . 8 61 191 9 Received Heat Transfer 1233 | . . . . 87 237 783 126 Effects 3 | . . . . . . 3 . Shutdowns 1 | . . . . . . 1 . Interference 1 | . . . . . . 1 . Damage (major) 1 | . . . . . . 1 . Siege Activations . | . . . . . . . . Robots Corrupted . | . . . . . . . . Combat Hostiles . | . . . . . . . . Parts Fried 1 | . . . . . . 1 . Impact Corruptions . | . . . . . . . . Robots Melted . | . . . . . . . . Combat Hostiles . | . . . . . . . . Parts Melted 1 | . . . . . . 1 . Heat Transferred 988 | . . . . . 111 877 . Parts Sabotaged . | . . . . . . . . Parts Stolen . | . . . . . . . . Parts Stripped . | . . . . . . . . Power Chain Reactions 1 | . . . . . . 1 . Missiles Intercepted . | . . . . . . . . Alert | -11 -10 -10 -10 -9 -8 -8 -8 ------- Run | Jun Mat Min Exi Min Mat Gar Mat Peak Influence 596 | . . 104 . 44 303 596 415 Initial 290 | . . . . . . 109 290 Average 162 | . . 34 . 6 149 424 301 Maximum Alert Level 2 | . . . . . 1 2 2 Low Security (%) 68 | 100 100 100 . 100 81 6 26 Level 1 14 | . . . . . 18 32 37 Level 2 17 | . . . . . . 61 36 Level 3 . | . . . . . . . . Level 4 . | . . . . . . . . Level 5 . | . . . . . . . . High Security . | . . . . . . . . Max Security . | . . . . . . . . Squads Dispatched 5 | . . 1 . . 1 . 3 Investigation . | . . . . . . . . Extermination . | . . . . . . . . Reinforcement 3 | . . . . . 1 . 2 Assault 1 | . . 1 . . . . . Garrison 1 | . . . . . . . 1 Intercept . | . . . . . . . . Searches Triggered . | . . . . . . . . Construction Impeded . | . . . . . . . . Haulers Reinforced . | . . . . . . . . Active Scanning Responses . | . . . . . . . . Cargo Convoy Interrupts . | . . . . . . . . Stealth | -11 -10 -10 -10 -9 -8 -8 -8 --------- Run | Jun Mat Min Exi Min Mat Gar Mat Distress Signals 5 | . 1 . . . 3 . 1 Communications Jammed . | . . . . . . . . Distress Signals . | . . . . . . . . Times Spotted 69 | . . 3 . 19 16 20 11 Peak Tracking Total 12 | . . 3 . 12 4 7 8 Tactical Retreats 4 | . . . . 2 2 . . Traps | -11 -10 -10 -10 -9 -8 -8 -8 ------- Run | Jun Mat Min Exi Min Mat Gar Mat Traps Triggered 4 | . 1 . . . . 3 . Indirectly . | . . . . . . . . Trap Hack Attempts . | . . . . . . . . Triggered . | . . . . . . . . Disarmed . | . . . . . . . . Reprogrammed . | . . . . . . . . Reused . | . . . . . . . . Traps Extracted . | . . . . . . . . Installed . | . . . . . . . . Triggered . | . . . . . . . . Machines | -11 -10 -10 -10 -9 -8 -8 -8 ---------- Run | Jun Mat Min Exi Min Mat Gar Mat Machines Disabled 2 | . . . . . 1 1 . Max in Single Turn 1 | . . . . . 1 1 . Garrison Relay 1 | . . . . . . 1 . Machines Repaired . | . . . . . . . . Machines Sabotaged . | . . . . . . . . Overloaded Fab Kills . | . . . . . . . . Hacking | -11 -10 -10 -10 -9 -8 -8 -8 --------- Run | Jun Mat Min Exi Min Mat Gar Mat Machines Accessed 7 | . . . 2 . 1 2 2 Terminals 4 | . . . . . . 2 2 Fabricators . | . . . . . . . . Repair Stations . | . . . . . . . . Recycling Units . | . . . . . . . . Scanalyzers . | . . . . . . . . Garrison Access 1 | . . . . . 1 . . Total Hacks 19 | . . . 5 . 2 2 10 Successful 13 | . . . 5 . 1 1 6 Failed 6 | . . . . . 1 1 4 Catastrophic 2 | . . . . . . 1 1 Database Lockouts . | . . . . . . . . Manual 9 | . . . 1 . . . 8 Terminals 12 | . . . . . . 2 10 Fabricators . | . . . . . . . . Repair Stations . | . . . . . . . . Recycling Units . | . . . . . . . . Scanalyzers . | . . . . . . . . Garrison Access 2 | . . . . . 2 . . Terminal Hacks 10 | . . . 5 . . 1 4 Record 4 | . . . 4 . . . . Prototype ID Bank 1 | . . . . . . . 1 Open Door 1 | . . . . . . 1 . Alert Level 1 | . . . . . . . 1 Unreport Threat 2 | . . . . . . . 2 EX-Prototype ID Bank 1 | . . . 1 . . . . Fabricator Hacks . | . . . . . . . . Repair Station Hacks . | . . . . . . . . Recycling Unit Hacks . | . . . . . . . . Scanalyzer . | . . . . . . . . Garrison Access Hacks 1 | . . . . . 1 . . Unlock Access 1 | . . . . . 1 . . Unauthorized Hacks 2 | . . . . . . . 2 Terminals 2 | . . . . . . . 2 Assimilate 1 | . . . . . . . 1 Botnet 1 | . . . . . . . 1 Fabricators . | . . . . . . . . Repair Stations . | . . . . . . . . Recycling Units . | . . . . . . . . Scanalyzers . | . . . . . . . . Garrison Access . | . . . . . . . . Data Cores Recovered . | . . . . . . . . Used . | . . . . . . . . Hacking Detections 3 | . . . . . . 1 2 Full Trace Events . | . . . . . . . . Feedback Events . | . . . . . . . . Feedback Blocked . | . . . . . . . . Robot Schematics Acquired . | . . . . . . . . Robots Built . | . . . . . . . . Authchips . | . . . . . . . . Time . | . . . . . . . . Total Robot Build Rating . | . . . . . . . . Part Schematics Acquired . | . . . . . . . . Parts Built . | . . . . . . . . Authchips . | . . . . . . . . Time . | . . . . . . . . Total Part Build Rating . | . . . . . . . . Parts Repaired . | . . . . . . . . Time . | . . . . . . . . Parts Recycled . | . . . . . . . . Recycled Matter . | . . . . . . . . Retrieved Matter . | . . . . . . . . Retrieved Components . | . . . . . . . . Parts Scanalyzed . | . . . . . . . . Part Schematics Acquired . | . . . . . . . . Parts Damaged . | . . . . . . . . Bothacking | -11 -10 -10 -10 -9 -8 -8 -8 ------------ Run | Jun Mat Min Exi Min Mat Gar Mat Used RIF Installer . | . . . . . . . . Robots Hacked . | . . . . . . . . Non-combat . | . . . . . . . . Combat . | . . . . . . . . Robot Hacks Applied . | . . . . . . . . Relay Couplers Released 7 | . . . . . . 7 . Machine Destruction 3 | . . . . . . 3 . Programmers 4 | . . . . . . 4 . Fabnet Peak Effective % . | . . . . . . . . Robots Rewired 3 | . . . . . . 3 . Allies Hacked . | . . . . . . . . Hacks Repelled . | . . . . . . . . Allies | -11 -10 -10 -10 -9 -8 -8 -8 -------- Run | Jun Mat Min Exi Min Mat Gar Mat Total Allies 5 | . . 1 . . . 3 1 Largest Group 3 | . . 1 1 1 . 3 1 Highest-Rated Group 84 | . . 31 31 31 . 84 10 Highest-Rated Ally 39 | . . 31 31 31 . 39 10 Total Orders . | . . . . . . . . Ally Attacks 41 | . . . . 16 . 25 . Total Damage 725 | . . . . 274 . 451 . Kills 11 | . . . . 5 . 6 . Allies Corrupted . | . . . . . . . . Allies Melted . | . . . . . . . . Intel | -11 -10 -10 -10 -9 -8 -8 -8 ------- Run | Jun Mat Min Exi Min Mat Gar Mat Robot Analysis Total . | . . . . . . . . Derelict Logs Recovered 2 | . . 2 . . . . . Drone Launches . | . . . . . . . . Drone Recoveries . | . . . . . . . . Exploration | -11 -10 -10 -10 -9 -8 -8 -8 ------------- Run | Jun Mat Min Exi Min Mat Gar Mat Turns Passed 4611 | 29 356 1034 941 444 597 845 365 Spaces Moved 2108 | 3 217 403 585 207 224 331 138 Core 1 | . . . . . . 1 . Treads 1216 | 3 217 403 585 8 . . . Legs 891 | . . . . 199 224 330 138 Wheels . | . . . . . . . . Hover . | . . . . . . . . Flight . | . . . . . . . . Fastest Speed 120 | 160 160 160 160 160 120 190 190 Average Speed 171 | 160 160 160 160 188 167 195 190 Slowest Speed 550 | 160 240 160 160 190 190 550 190 Overloaded Moves . | . . . . . . . . Propulsion Burnouts . | . . . . . . . . Robots Hopped . | . . . . . . . . Cave-ins Triggered . | . . . . . . . . Exploration Rate (%) 42 | 1 33 80 92 52 16 52 13 Regions Visited 7 Branch Regions 3 Pre-discovered Areas 1 | . . . 1 . . . . Known Exits Taken 1 | . . . . . 1 . . Unknown Exits Taken 5 | 1 1 1 1 1 . . . Scrap Searched 2 | . . 1 . 1 . . . Spaces Dug . | . . . . . . . . Terrain Destroyed 146 | . . 37 . 62 35 12 . Melee . | . . . . . . . . Projectile 1 | . . . . . 1 . . AOE 145 | . . 37 . 62 34 12 . Terrain Rammed . | . . . . . . . . Walls Destroyed . | . . . . . . . . Machines Disabled . | . . . . . . . . Actions | -11 -10 -10 -10 -9 -8 -8 -8 --------- Run | Jun Mat Min Exi Min Mat Gar Mat Total 2916 | 27 225 786 591 239 375 454 219 Wait 498 | 20 . 374 . . 55 . 49 Move 2101 | 2 216 402 584 206 223 330 138 Hop . | . . . . . . . . Pick Up 39 | . 4 3 6 3 9 7 7 Fast Attach 18 | . 3 . . 1 4 8 2 Attach 14 | . . . . 2 6 5 1 Detach . | . . . . . . . . Swap 23 | 3 . 2 . 5 9 4 . Drop 28 | 2 2 . 1 2 7 5 9 Fire 162 | . . 5 . 20 62 62 13 Melee . | . . . . . . . . Ram . | . . . . . . . . Kick . | . . . . . . . . Crush . | . . . . . . . . Escape Stasis 15 | . . . . . . 15 . Rewire 18 | . . . . . . 18 . Trap . | . . . . . . . . Miscellaneous . | . . . . . . . . Route ------- -11/Junkyard -10/Materials (discovered 2 exits: [*Mat] / [*Min]) -10/Mines (discovered 2 exits: [*Mat] / *Exi) -10/Exiles (discovered 2 exits: [*Min x2]) -9/Mines -8/Materials (discovered 2 exits: [*Sto] / Gar) -8/Garrison (discovered 2 exits: *Mat x2) -8/Materials History --------- Turn | Location | Event 27 | -11/Junkyard | Discovered new exit (range 0) 30 | -11/Junkyard | Entered Materials 213 | -10/Materials | Discovered new exit (range 16) 280 | -10/Materials | Discovered new exit (range 16) 318 | -10/Materials | Build established: Mutant 386 | -10/Materials | Entered Mines 502 | -10/Mines | Discovered new exit (range 7) 504 | -10/Mines | Learned Materials trap positions 595 | -10/Mines | Received a Rocket Launcher from a helpful Derelict 751 | -10/Mines | Met a Derelict testing a Signal Generator 761 | -10/Mines | Found Signal Generator 1329 | -10/Mines | Learned Materials emergency access door positions 1354 | -10/Mines | Deemed a non-threat by the Exiles lab entrance 1354 | -10/Mines | Discovered new exit (range 5) 1420 | -10/Mines | Entered Exiles 1420 | -10/Exiles | Accompanied by 1 ally 1444 | -10/Exiles | Discovered new exit (range 15) 1492 | -10/Exiles | Met 8R-AWN 1518 | -10/Exiles | Met EX-HEX 1571 | -10/Exiles | Met EX-BIN 1598 | -10/Exiles | Aligned with FarCom system 1600 | -10/Exiles | Given EX-Vault access code 1638 | -10/Exiles | Opened EX-Vault 1649 | -10/Exiles | Found Skeleton Box 1687 | -10/Exiles | Warned to stay clear of 0b10 Research branches 1730 | -10/Exiles | Met EX-DEC 1738 | -10/Exiles | Learned location of Zion (-6) 1802 | -10/Exiles | Visited The Gauntlet 2347 | -10/Exiles | Discovered new exit (range 10) 2361 | -10/Exiles | Left Exiles lab with Skeleton Box 2361 | -10/Exiles | Entered Mines 2361 | -9/Mines | Accompanied by 1 ally 2366 | -9/Mines | Assembled infested the area 2426 | -9/Mines | Destroyed 13 combat bots 2771 | -9/Mines | Discovered new exit (range 14) 2805 | -9/Mines | Entered Materials 2805 | -8/Materials | Evolved 4 slots: Propulsion x1, Utility x3 2806 | -8/Materials | Loaded intel: 15 trap records 2812 | -8/Materials | Discovered new exit (range 15) 2826 | -8/Materials | Identified exit to Garrison 3041 | -8/Materials | Lost 3 parts (1p1n1w) 3402 | -8/Materials | Entered Garrison 3457 | -8/Garrison | Triggered checkpoint 3690 | -8/Garrison | Triggered checkpoint 3710 | -8/Garrison | Triggered checkpoint 3722 | -8/Garrison | P-60 Hacker assimilated allied *Z3-6ZG 3794 | -8/Garrison | Triggered checkpoint 3875 | -8/Garrison | Discovered new exit (range 12) 3994 | -8/Garrison | Triggered checkpoint 4044 | -8/Garrison | Triggered checkpoint 4044 | -8/Garrison | Garrison Relay disabled 4073 | -8/Garrison | Core integrity fell below 50% 4109 | -8/Garrison | Core integrity fell below 20% 4135 | -8/Garrison | Lost 8 parts (1p4n3w) 4205 | -8/Garrison | Discovered new exit (range 9) 4247 | -8/Garrison | Entered Materials 4363 | -8/Materials | Build established: Scavenger-Mutant 4598 | -8/Materials | Garrison activated, responded to threat 4612 | -8/Materials | Destroyed by X-62 Marksman with Pulse Rifle Last Messages --------------- 04547_ Y-45 Defender destroyed. 04550_ Dropped Particle Gun. 04558_ Acquired Flak Cannon. 04565_ ALERT: Suspicious intruders detected, dispatching Specialist reinforcements to area. 04567_ System corrupted: Matter fused (-6). 04596_ Penetrated by Slug. 04597_ ALERT: Hostiles spotted, dispatching reinforcements to Terminal M008. 04598_ X-62 Marksman calls for garrison reinforcements. 04598_ ALERT: Activating Garrison Access M001. 04599_ Penetrated by Slug. 04601_ X-62 Marksman knocked back. 04601_ Aluminum Leg destroyed. 04603_ Penetrated by Slug. 04604_ X-62 Marksman destroyed. 04608_ Slug penetrates Wall. 04610_ System corrupted: Flak Cannon jammed. 04610_ W-25 Informer knocked back. 04610_ R-06 Scavenger knocked back. Map ----- +----------------------------------------------------+ | ????????????????????????????????# #??????????? | | ????????????????????????????????# #??????????? | | ????????????????????????????????# #??????????? | | ????????????????????????????????# #??????????? | | ????????????????????????????????# #??????????? | | ????????????????????????????????# ######?????? | | ????????????????????????????????# ##!] #?????? | | ???????????????????????????????## ##!*]#?????? | | ????????????????????????######## !!#?????? | | ????????????????????????# ! !#?????? | | ????????????????????????# T !!#?????? | | ????????????????????????# !!#?????? | | ????????????????????????# #### #####?????? | | ????????????????????????# #??### ###?????????? | | ???????????????????????g# a #????# #???????????? | | ????????????????????????g #????# #???????????? | | ???????????????????????g#g ######+###?????????? | | ???????????????????????g# # #?????????? | | ????????????????????????# # #?????????? | | ????????????????????????# # #?????????? | | ????????????????????????# # """ #?????????? | | ????????????????????????# # """"" #?????????? | | ??????????????????????### + """"" #?????????? | | ??????????# #######T# # """"" #?????????? | | ??????????# w # """ #?????????? | | ??????????# #########@ # #?????????? | | ????????????????????????# ##########?????????? | | ?????????????????########rw # #?????????? | | ?????????????????# ^ # x # "" #?????????? | | ?????????????????# ^ + # ""S = ##????????? | | ?????????????????# ^ """# # "" [% #????????? | | ?????????????????# ^"""# [ + = #?????????? | | ?????????????????# ""?# % # """ #?????????? | | ?????????????????# ?### # """ #?????????? | | ??????????????????####????# # """ #?????????? | | ??????????????????????????# # #?????????? | | ??????????????????????????# ##########?????????? | | ??????????????????????????# #??????????????????? | | ??????????????????????????#+#??????????????????? | | ???????????????????????????????????????????????? | | ???????????????????????????????????????????????? | | ???????????????????????????????????????????????? | | ???????????????????????????????????????????????? | | ???????????????????????????????????????????????? | | ???????????????????????????????????????????????? | | ???????????????????????????????????????????????? | | ???????????????????????????????????????????????? | | ???????????????????????????????????????????????? | | ???????????????????????????????????????????????? | | ???????????????????????????????????????????????? | +----------------------------------------------------+ Best States ------------- Heat Dissipation 45 Energy Generation 16 Energy Capacity 440 Matter Stores 466 Matter Capacity 500 Sight Range 16 Robot Scan Range 14 Terrain Scan Density 10 Power Shielding 66 Utility Shielding 66 Evasion (%) 55 Recoil Reduction 2 Item Schematics ----------------- None Robot Schematics ------------------ None Fabricated ------------ Nothing Alien Tech Used ----------------- None Achievements -------------- None Challenges ------------ None Game ------ Seed MediumBattleThrower Manual? 0 Play Time 00:35:23 Cumulative 1046.3 hours Start 2023.03.12 @ 22:01:29 End 2023.03.12 @ 22:39:59 Sessions 3 Manual Loads 0 Difficulty Rogue Special Mode None Game No. 224 Rogue 8 Adventurer 216 Explorer 0 Win Type - Total 5 Types 4/0/1/0/0/0/0/0/0 Lore% 70 Gallery% 84 Achievement% 66 Wizard Run 0 Options --------- ASCII 0 Keyboard 0 Movement Mouse Keybinds 0 Fullscreen 0 Font 16/SmallcapsGlow Map View 76x50 Tactical HUD 1 Map Filters NONE Filters BRIGHTNESS(125)|SATURATION(75)|LOW_CONTRAST(13,24,33)|SHIFT_HUE(130) Steam 1 RUN: 34b556da-0808-41ea-939e-d480371a6da4